[Event "Aktobe Open 2022"]
[Site "Aktobe"]
[Date "2022.06.16"]
[Round "4.1"]
[White "Nogerbek, Kazybek"]
[Black "Ponkratov, Pavel"]
[Result "1/2-1/2"]
[ECO "A33"]
[WhiteElo "2424"]
[BlackElo "2624"]
[Annotator "TA"]
[PlyCount "63"]
[EventDate "2022.06.14"]
[EventType "swiss"]
[EventCountry "KAZ"]
[SourceTitle "playchess.com"]
[Source "ChessBase"]
[SourceQuality "1"]
[TimeControl "5400+30"]

{[%evp 12,63,0,-11,-6,-16,-6,3,-12,-12,-25,-15,-14,-18,-12,-14,0,0,0,0,0,-7,0,-7,0,-24,-14,-18,-7,-24,0,-21,-20,-89,-43,-52,-20,-22,-16,-25,-16,-63,-16,-16,-16,-16,-16,-22,-5,-5,-6,-6,-6,-6]} 1. Nf3 {[%emt 0:00:08]} Nf6 {[%emt 0:00:24]} 2. c4 {[%emt 0:00:10]} c5 {[%emt 0:00:39]} 3. Nc3 {[%emt 0:00:33]} e6 {[%emt 0:00:05]} 4. d4 {[%emt 0:00:11]} cxd4 {[%emt 0:00:05]} 5. Nxd4 {[%emt 0:00:10]} Nc6 {[%emt 0:00:04][%cal Bb8c6,Bc6e5,Be5c4][%mdl 32]} 6. g3 {[%emt 0:00:31]} Qb6 {[%emt 0:00:04]} 7. Nb3 {[%emt 0:02:58]} Ne5 {[%emt 0:00:08] A33: Symmetrical English: 2 Nf3 Nf6 3 d4 cxd4 4 Nxd4 e6 5 Nc3 Nc6.} 8. Bg2 {[%emt 0:00:05] Against Qc6} Nxc4 {[%emt 0:01:25]} 9. O-O {[%emt 0:00:09]} Bb4 {[%emt 0:01:11]} 10. e4 {[%emt 0:01:37]} Bxc3 {[%emt 0:01:42]} 11. bxc3 {[%emt 0:00:07]} d6 {[%emt 0:00:07] [#]} 12. Nd2 $146 {[%emt 0:03:23]} ({Predecessor:} 12. Bg5 e5 13. Rb1 Qc7 14. Qc1 h6 15. Bxf6 gxf6 16. Na1 h5 17. h4 Be6 18. Nc2 {½-½ (62) Kalashian,D (2451)-Petrosian,D (2501) Yerevan 2010}) 12... Nxd2 {[%emt 0:01:57]} 13. Qxd2 {[%emt 0:00:18][%cal Oe4e5]} O-O {[%emt 0:00:12][%cal Bh8f8,Bf8c8,Bc8c3][%mdl 32]} 14. Rd1 {[%emt 0:05:27]} e5 {[%emt 0:04:03]} 15. Qxd6 {[%emt 0:00:24]} Qxd6 {[%emt 0:00:08]} 16. Rxd6 {[%emt 0:00:07]} Be6 {[%emt 0:00:03]} 17. a4 {[%emt 0:05:45]} Rfc8 {[%emt 0:00:10]} 18. a5 {[%emt 0:00:59]} Rxc3 {[%emt 0:02:25]} 19. Bb2 {[%emt 0:01:25]} Rc5 {[%emt 0:00:14]} 20. f4 {[%emt 0:00:18]} Ne8 {[%emt 0:06:29]} 21. Rd2 {[%emt 0:07:43]} f6 {[%emt 0:00:14]} 22. Rf2 {[%emt 0:10:28]} (22. Ra4 $11) 22... h6 {[%emt 0:02:04]} (22... Nd6 $17) 23. a6 $15 {[%emt 0:03:39]} bxa6 {[%emt 0:00:13]} 24. fxe5 {[%emt 0:03:27]} fxe5 {[%emt 0:00:05]} 25. Ba3 {[%emt 0:00:05] This bishop pair is nice.} Ra5 {[%emt 0:00:04]} 26. Rf8+ {[%emt 0:00:13]} Kh7 {[%emt 0:00:04]} 27. Bb2 {[%emt 0:10:27] The position is equal.} Rxa1+ {[%emt 0:10:15]} 28. Bxa1 {[%emt 0:00:25]} a5 {[%emt 0:00:03]} 29. Bf1 {[%emt 0:01:24]} a4 {[%emt 0:13:16]} 30. Bb5 {[%emt 0:00:10]} Nc7 {[%emt 0:00:03][%csl LRb5,LRf8]} 31. Rxa8 {[%emt 0:00:07]} Nxa8 {[%emt 0:00:02]} 32. Bxa4 {[%emt 0:00:09] Weighted Error Value: White=0.10 (very precise) /Black=0.07 (flawless)} 1/2-1/2

[Event "Aktobe Open 2022"]
[Site "Aktobe"]
[Date "2022.06.16"]
[Round "4.2"]
[White "Vakhidov, Jakhongir"]
[Black "Agmanov, Zhandos"]
[Result "0-1"]
[ECO "A29"]
[WhiteElo "2552"]
[BlackElo "2420"]
[Annotator "TA"]
[PlyCount "194"]
[EventDate "2022.06.14"]
[EventType "swiss"]
[EventCountry "KAZ"]
[SourceTitle "playchess.com"]
[Source "ChessBase"]
[SourceQuality "1"]
[TimeControl "5400+30"]

{[%evp 14,194,25,22,20,27,23,30,29,36,34,26,45,42,47,41,34,35,32,42,36,29,33,32,59,60,57,56,56,55,64,64,66,60,69,58,59,57,68,64,69,60,62,62,66,57,62,62,62,65,69,66,66,61,67,51,55,51,52,53,47,49,57,60,79,75,77,73,78,77,81,68,68,68,68,68,78,69,70,70,77,77,77,45,45,45,110,109,109,109,102,59,53,52,52,52,52,52,52,52,52,52,52,52,52,43,43,43,43,43,43,43,43,43,43,43,43,43,43,43,43,43,43,43,43,43,43,43,43,0,43,43,43,43,43,43,43,43,43,43,43,43,43,43,43,43,43,21,43,43,62,7,7,7,7,7,7,7,7,7,12,7,12,12,13,13,13,0,12,7,13,7,7,0,0,0,0,0,0,0,0,-950,-823]} 1. c4 {[%emt 0:00:04]} Nf6 {[%emt 0:00:15]} 2. Nc3 {[%emt 0:00:05]} e5 {[%emt 0:00:13]} 3. Nf3 {[%emt 0:00:07]} Nc6 {[%emt 0:00:08]} 4. g3 {[%emt 0:00:06]} Nd4 {[%emt 0:00:31]} 5. Bg2 {[%emt 0:00:08]} Nxf3+ {[%emt 0:00:06]} 6. Bxf3 {[%emt 0:00:05]} Bb4 {[%emt 0:00:33]} 7. Qb3 {[%emt 0:01:24]} Bc5 {[%emt 0:00:50]} 8. O-O {[%emt 0:00:41]} ({Avoid the trap} 8. Bxb7 $2 Rb8 9. O-O Bxb7 $19) 8... O-O {[%emt 0:01:35] A29: English Opening: Four Knights Variation with 4 g3.} 9. Na4 {[%emt 0:00:07]} Be7 {[%emt 0:03:50]} 10. d4 {[%emt 0:00:26]} exd4 {[%emt 0:33:31][%cal Od7d5] White has an edge.} 11. Rd1 {[%emt 0:00:11]} d6 {[%emt 0:01:36]} 12. Rxd4 {[%emt 0:00:17]} Nd7 {[%emt 0:01:53]} 13. Bf4 {[%emt 0:06:14]} (13. Bxb7 $2 Rb8 14. Bxc8 Rxb3 15. Bxd7 Rb4 $19) 13... Bf6 {[%emt 0:03:31]} 14. Rd2 {[%emt 0:02:51]} Qe7 {[%emt 0:09:37]} 15. Nc3 {[%emt 0:03:28] [#]} ({Not} 15. Bxb7 $2 Rb8 16. Qe3 Qxe3 17. Bxe3 Bxb7 $19) 15... Bxc3 $146 {[%emt 0:11:29]} ({Predecessor:} 15... Be5 16. Nd5 Qd8 17. Rad1 Rb8 18. Qe3 Bxf4 19. Nxf4 b6 20. b4 Ba6 21. Qc3 Qc8 22. Bd5 Nf6 23. Bc6 Bb7 24. Nd5 Nxd5 25. cxd5 Bxc6 {½-½ (25) Depasse,J (2253)-Pascual Perez,N (2243) LSS email 2013}) 16. Qxc3 {[%emt 0:00:21]} ({Don't play} 16. bxc3 Re8 $11) 16... Nc5 {[%emt 0:00:59]} 17. Qc2 {[%emt 0:07:18]} Re8 {[%emt 0:04:05]} 18. Be3 {[%emt 0:03:05]} Ne4 {[%emt 0:02:22]} 19. Bxe4 {[%emt 0:06:12]} Qxe4 {[%emt 0:00:11]} 20. Qxe4 {[%emt 0:00:06]} Rxe4 {[%emt 0:00:06]} 21. c5 {[%emt 0:00:08]} Bd7 {[%emt 0:08:21]} 22. cxd6 {[%emt 0:01:28]} cxd6 {[%emt 0:00:02]} 23. Rxd6 {[%emt 0:00:40]} Bc6 {[%emt 0:00:07]} 24. Rad1 {[%emt 0:02:58]} f6 {[%emt 0:00:12]} 25. Kf1 {[%emt 0:05:10]} a6 {[%emt 0:00:40]} 26. Ke1 {[%emt 0:04:06]} Rae8 {[%emt 0:00:08]} 27. Rc1 {[%emt 0:13:12]} R4e6 {[%emt 0:01:07]} 28. Rd4 {[%emt 0:01:14]} Re4 {[%emt 0:00:32]} 29. Kd2 {[%emt 0:05:52]} Kf7 {[%emt 0:00:35]} 30. Rxe4 {[%emt 0:01:54]} Rxe4 $14 {[%emt 0:00:11][%mdl 4096] Endgame KRB-KRB} 31. f3 {[%emt 0:00:05]} Re5 {[%emt 0:00:18]} 32. Bd4 {[%emt 0:03:21]} Rd5 {[%emt 0:00:03]} 33. Kc3 {[%emt 0:00:09]} Rd8 {[%emt 0:00:31]} 34. g4 {[%emt 0:08:05]} Bb5 {[%emt 0:00:33]} 35. Re1 {[%emt 0:00:13]} Rc8+ {[%emt 0:01:40]} 36. Kd2 {[%emt 0:00:56]} Rd8 {[%emt 0:00:01]} 37. Ke3 {[%emt 0:01:41]} Re8+ {[%emt 0:00:34]} 38. Kf2 {[%emt 0:00:13]} Bc4 {[%emt 0:00:26]} 39. a3 {[%emt 0:00:37]} Rd8 {[%emt 0:00:14]} 40. e3 {[%emt 0:00:16]} Rc8 {[%emt 0:00:09]} 41. e4 {[%emt 0:03:37]} Bb3 {[%emt 0:01:25]} 42. Bc3 {[%emt 0:00:08]} Rd8 {[%emt 0:01:26]} 43. Re3 {[%emt 0:03:52] Threatens to win with Ba5.} Be6 {[%emt 0:00:35]} 44. h3 {[%emt 0:04:52]} h5 {[%emt 0:02:34]} 45. Re1 {[%emt 0:01:49]} hxg4 {[%emt 0:01:45]} 46. hxg4 {[%emt 0:00:16]} Rd3 {[%emt 0:00:27]} 47. Rh1 {[%emt 0:07:29]} Bd7 {[%emt 0:05:02]} 48. g5 {[%emt 0:03:37]} fxg5 {[%emt 0:01:35]} 49. Rh7 {[%emt 0:00:02]} g4 {[%emt 0:00:34]} ({Better is} 49... Kf8 $1 $14) 50. fxg4 $16 {[%emt 0:00:21]} Bc6 {[%emt 0:00:03]} 51. Rxg7+ {[%emt 0:01:36]} Kf8 {[%emt 0:00:01][%cal Od3c3]} 52. Rc7 {[%emt 0:00:50]} Bxe4 {[%emt 0:00:10]} 53. g5 {[%emt 0:00:15]} Rf3+ {[%emt 0:00:39]} 54. Ke2 {[%emt 0:00:02][%cal Og5g6] [#] Black must now prevent g6!} Rg3 {[%emt 0:00:23]} 55. Bf6 {[%emt 0:00:26]} Bc6 {[%emt 0:00:27]} 56. Kd2 {[%emt 0:00:02]} Be4 {[%emt 0:00:37]} 57. a4 {[%emt 0:00:56]} Bc6 {[%emt 0:00:47]} 58. a5 {[%emt 0:01:24]} Bd5 {[%emt 0:00:40]} 59. Rc5 {[%emt 0:00:15]} Bc6 {[%emt 0:00:17]} 60. Be5 {[%emt 0:00:08]} Rg2+ {[%emt 0:00:10]} 61. Kc3 {[%emt 0:00:23]} Kf7 {[%emt 0:00:07]} 62. Bf6 {[%emt 0:02:45]} Rg4 {[%emt 0:00:06]} 63. Re5 {[%emt 0:00:19]} Kg6 {[%emt 0:00:07]} 64. Re6 {[%emt 0:00:15]} Kf5 {[%emt 0:00:24]} 65. Re7 {[%emt 0:00:08]} Kg6 {[%emt 0:00:18]} 66. Rc7 {[%emt 0:00:10]} Kf5 {[%emt 0:00:08]} 67. Rg7 {[%emt 0:00:20]} Bd5 {[%emt 0:00:21]} 68. Bd8 {[%emt 0:00:14]} Rc4+ {[%emt 0:00:12]} 69. Kd3 {[%emt 0:00:07]} Rg4 {[%emt 0:00:53]} 70. Rd7 {[%emt 0:00:07]} Ke6 {[%emt 0:01:44]} 71. Rg7 {[%emt 0:00:11]} Kf5 {[%emt 0:00:36]} 72. Rh7 {[%emt 0:00:59]} Kg6 {[%emt 0:02:01]} 73. Rh6+ {[%emt 0:02:09]} Kg7 {[%emt 0:00:08]} 74. Rd6 {[%emt 0:00:06]} Bc6 {[%emt 0:00:08]} 75. Kc3 {[%emt 0:00:10]} Kf7 {[%emt 0:00:15]} 76. Bf6 {[%emt 0:00:29]} Kg6 {[%emt 0:00:10]} 77. b3 {[%emt 0:00:56]} Kf5 {[%emt 0:00:10]} 78. Bd8 {[%emt 0:00:10]} Bg2 {[%emt 0:05:39]} 79. b4 {[%emt 0:01:02]} Ke5 {[%emt 0:01:07]} 80. Rh6 {[%emt 0:00:22]} Be4 {[%emt 0:01:06]} 81. Be7 {[%emt 0:00:22]} Rg3+ {[%emt 0:00:35]} 82. Kd2 {[%emt 0:00:58]} ({White should play} 82. Kc4 $14 Rg2 83. Kc5) 82... Rg2+ $11 {[%emt 0:00:07]} 83. Ke3 {[%emt 0:00:11]} Rg3+ {[%emt 0:00:04]} 84. Kf2 {[%emt 0:00:05]} Rg2+ {[%emt 0:00:06]} 85. Kf1 {[%emt 0:00:01]} Rg4 {[%emt 0:00:07]} 86. Bd8 {[%emt 0:00:45]} Kf4 {[%emt 0:00:50]} 87. Re6 {[%emt 0:00:29]} Ke3 {[%emt 0:00:18]} 88. Re8 {[%emt 0:02:03]} Kd3 {[%emt 0:00:13]} 89. Rf8 {[%emt 0:00:29]} Kd2 {[%emt 0:00:54]} 90. Bc7 {[%emt 0:00:32]} Ke3 {[%emt 0:00:40] [#] ( -> ...Bd3+)} 91. Bb6+ {[%emt 0:00:09]} Kd2 {[%emt 0:00:42]} 92. Rd8+ {[%emt 0:00:17]} Kc3 {[%emt 0:00:11]} 93. Be3 {[%emt 0:00:21]} Kxb4 {[%emt 0:00:40]} 94. Bd2+ {[%emt 0:00:16]} Kc4 {[%emt 0:00:19]} 95. Kf2 {[%emt 0:00:09]} Bd5 {[%emt 0:00:24]} 96. Rd6 {[%emt 0:00:20]} Rg2+ {[%emt 0:00:11]} 97. Kf1 $2 {[%emt 0:00:19][%mdl 8192]} (97. Ke1 $11) 97... Rxd2 {[%emt 0:00:07] Weighted Error Value: White=0.04 (flawless) /Black=0.04 (flawless)} 0-1

[Event "Aktobe Open 2022"]
[Site "Aktobe"]
[Date "2022.06.16"]
[Round "4.3"]
[White "Utegaliyev, Azamat"]
[Black "Kostenko, Petr"]
[Result "1-0"]
[ECO "A43"]
[WhiteElo "2463"]
[BlackElo "2416"]
[Annotator "TA"]
[PlyCount "50"]
[EventDate "2022.06.14"]
[EventType "swiss"]
[EventCountry "KAZ"]
[SourceTitle "playchess.com"]
[Source "ChessBase"]
[SourceQuality "1"]
[TimeControl "5400+30"]

{[%evp 16,50,48,34,35,31,30,35,27,26,25,27,35,30,30,27,37,37,49,25,31,36,25,37,44,7,38,22,20,17,37,0,10,0,0,-28,43]} 1. d4 {[%emt 0:00:19]} c5 {[%emt 0:13:43]} 2. d5 {[%emt 0:00:42]} d6 {[%emt 0:00:09]} 3. e4 {[%emt 0:00:28]} Nf6 {[%emt 0:00:07]} 4. Nc3 {[%emt 0:00:09]} g6 {[%emt 0:00:05]} 5. Bb5+ {[%emt 0:03:00]} Bd7 {[%emt 0:00:18]} 6. a4 {[%emt 0:00:17]} Bg7 {[%emt 0:00:06]} 7. Nf3 {[%emt 0:00:36]} O-O {[%emt 0:00:07]} 8. O-O {[%emt 0:07:58]} Na6 {[%emt 0:07:03] 8...Bxb5 gains popularity.} 9. Re1 {[%emt 0:02:27]} Bxb5 {[%emt 0:01:16] A43: Schmid Benoni.} 10. Nxb5 {[%emt 0:06:55]} Nc7 {[%emt 0:00:40]} 11. c4 {[%emt 0:01:28]} Nxb5 {[%emt 0:00:20] White is slightly better.} 12. axb5 {[%emt 0:00:04][%cal Ba4b5,Bb5a6][%mdl 32] [#]} a6 $146 {[%emt 0:00:16]} ({Predecessor:} 12... Nd7 13. Re3 a5 14. Qc2 Re8 15. Bd2 e6 16. dxe6 Rxe6 17. Bc3 h6 18. h3 Kh7 {0-1 (41) Dobosz,H (2409)-Kuklin,V (2340) Germany 2011}) 13. bxa6 {[%emt 0:00:42]} Qb6 {[%emt 0:00:19]} 14. e5 {[%emt 0:01:31]} Ng4 {[%emt 0:01:11][%cal Rg4e5]} 15. exd6 {[%emt 0:16:31]} exd6 {[%emt 0:01:12]} 16. h3 {[%emt 0:00:16]} Nf6 {[%emt 0:00:53]} 17. Bf4 {[%emt 0:00:18][%cal Oa6a7] And now a7! would win.} Rxa6 {[%emt 0:05:03]} 18. Rxa6 {[%emt 0:00:10]} Qxa6 {[%emt 0:00:06]} 19. b3 {[%emt 0:00:42]} Ra8 {[%emt 0:29:19]} 20. g4 {[%emt 0:03:41]} Bf8 {[%emt 0:15:38]} (20... b5 $5 {[%cal Rb5c4]}) 21. Bg5 {[%emt 0:05:02]} Nd7 {[%emt 0:00:58]} 22. Qd3 {[%emt 0:00:12]} Rb8 {[%emt 0:15:12]} 23. Qe4 {[%emt 0:03:36]} b5 {[%emt 0:02:42]} 24. Kg2 {[%emt 0:00:15]} Qa2 {[%emt 0:01:53]} 25. Re3 {[%emt 0:02:14]} Rc8 {[%emt 0:04:24] Weighted Error Value: White=0.12 (very precise) /Black=0.04 (flawless)} ({Black should play} 25... h6 $11 26. Bh4 Nb6) 1-0

[Event "Aktobe Open 2022"]
[Site "Aktobe"]
[Date "2022.06.16"]
[Round "4.4"]
[White "Sadubayev, Airat"]
[Black "Nesterov, Arseniy"]
[Result "1/2-1/2"]
[ECO "C52"]
[WhiteElo "2317"]
[BlackElo "2569"]
[Annotator "TA"]
[PlyCount "116"]
[EventDate "2022.06.14"]
[EventType "swiss"]
[EventCountry "KAZ"]
[SourceTitle "playchess.com"]
[Source "ChessBase"]
[SourceQuality "1"]
[TimeControl "5400+30"]

{[%evp 14,116,-3,-14,-36,-45,-50,-37,-37,-49,-46,-40,-39,-45,-16,-55,-12,-12,-4,-18,0,-50,-26,-68,-37,-35,-14,-35,0,-7,-7,-18,-14,-14,-14,-21,68,68,147,125,193,221,156,114,137,127,129,122,122,117,208,180,202,198,175,107,107,107,179,183,183,183,183,183,166,156,114,0,0,0,0,0,0,0,0,0,0,0,0,0,0,0,0,0,0,0,0,0,0,0,0,0,0,0,0,0,0,0,0,0,0,0,0,0,0]} 1. e4 {[%emt 0:00:59]} e5 {[%emt 0:00:03]} 2. Nf3 {[%emt 0:00:13]} Nc6 {[%emt 0:00:08]} 3. Bc4 {[%emt 0:00:12]} Bc5 {[%emt 0:00:13]} 4. b4 {[%emt 0:00:33]} Bxb4 {[%emt 0:00:24]} 5. c3 {[%emt 0:00:13]} Ba5 {[%emt 0:00:06]} 6. d4 {[%emt 0:00:21]} d6 {[%emt 0:00:12]} 7. Qb3 {[%emt 0:01:45]} Qd7 {[%emt 0:00:19]} 8. O-O {[%emt 0:01:20]} Bb6 $1 {[%emt 0:00:30] C52: Evans Gambit Accepted: 5 c3 Ba5.} 9. Nbd2 $1 {[%emt 0:00:32][%mdl 4] outshines the older 9.Bb5.} Na5 {[%emt 0:00:34]} 10. Qc2 {[%emt 0:00:11]} f6 {[%emt 0:00:41] Black is slightly better.} 11. a4 {[%emt 0:03:04]} Ne7 $1 {[%emt 0:02:02] [#]} 12. Ba3 $146 {[%emt 0:02:37]} ({Predecessor:} 12. Ba2 Nec6 13. Rb1 exd4 14. cxd4 Bxd4 15. Re1 Bc5 16. e5 fxe5 17. Ne4 Bb6 18. Bg5 {½-½ (54) Kahl,F (2413)-Zielinski,S (2357) LSS email 2020}) 12... Ng6 {[%emt 0:16:01]} 13. Rfd1 {[%emt 0:12:48]} Qe7 {[%emt 0:12:17]} 14. Rab1 {[%emt 0:11:11]} Be6 {[%emt 0:05:22]} 15. Bxe6 {[%emt 0:16:42]} Qxe6 {[%emt 0:00:14]} 16. Bb4 {[%emt 0:00:52]} O-O {[%emt 0:06:22]} 17. d5 {[%emt 0:08:22]} (17. g3 $11) 17... Qd7 {[%emt 0:04:50]} (17... Qg4 {is more complex.} 18. h3 Qh5 19. Bxa5 Bxa5 20. Rxb7 Bb6) 18. c4 {[%emt 0:04:45]} c5 {[%emt 0:01:08]} (18... Nf4 {keeps more tension.} 19. Nf1 Qg4 20. Ng3 h5) 19. Bc3 {[%emt 0:01:52]} Bc7 {[%emt 0:01:41]} (19... Nf4 {feels hotter.} 20. Re1 Bc7 21. g3 Qg4) 20. g3 {[%emt 0:03:24]} Ne7 {[%emt 0:03:35]} 21. Rb2 {[%emt 0:02:52]} b6 {[%emt 0:00:23]} (21... Qh3 {with more complications.} 22. Nh4 b6 23. Rf1 Nb7) 22. Ra1 {[%emt 0:06:01]} Nb7 {[%emt 0:03:46]} (22... Qh3 {seems wilder.} 23. Nh4 Nb7 24. Qd3 Rf7) 23. Nf1 {[%emt 0:00:31]} h6 {[%emt 0:02:04]} 24. Ne3 {[%emt 0:02:10]} g6 {[%emt 0:12:38]} (24... f5 $11) 25. Nh4 $14 {[%emt 0:01:30]} Nd8 {[%emt 0:08:42]} (25... Rf7 $14) 26. f4 {[%emt 0:01:57]} exf4 {[%emt 0:03:11]} (26... g5 $16) 27. gxf4 $18 {[%emt 0:00:09] [#] Black must now prevent Qg2.} Qh3 {[%emt 0:00:04]} 28. Qf2 {[%emt 0:01:24] Active counter play!} g5 {[%emt 0:02:38]} 29. Nhg2 {[%emt 0:01:15]} Ng6 {[%emt 0:01:01]} 30. Qg3 {[%emt 0:01:57]} Qxg3 {[%emt 0:03:17]} 31. hxg3 {[%emt 0:00:02] Ng4 is the strong threat.} h5 {[%emt 0:01:03] Inhibits Ng4.} (31... Nf7 $16) 32. Kf2 {[%emt 0:00:52][%mdl 1024] White has strong compensation.} h4 {[%emt 0:03:18]} 33. Rh1 {[%emt 0:02:00] aiming for Ng4.} Nf7 {[%emt 0:02:57]} 34. Ng4 {[%emt 0:03:30]} (34. Bxf6 Rae8 $11) (34. Nf5 $18) 34... Bd8 $16 {[%emt 0:01:28]} 35. f5 {[%emt 0:02:09]} ({Stronger than} 35. Nxf6+ Bxf6 36. Bxf6 {[#]} Nfe5 $1 37. Bxe5 (37. fxe5 Nxe5 38. Ne3 Rxf6+ 39. Kg2 hxg3 $17) 37... Nxe5 $15) ({But not} 35. gxh4 gxf4 36. Rg1 (36. Nxf6+ Bxf6 37. Bxf6 Nh6 $17) 36... Kh7 $11) (35. Bxf6 Bxf6 36. Nxf6+ Kg7 $17) 35... hxg3+ {[%emt 0:01:57]} (35... Nge5 $16 36. Bxe5 Nxe5 37. Nxe5 fxe5) 36. Kxg3 $18 {[%emt 0:00:01]} Nge5 {[%emt 0:00:05]} 37. Bxe5 {[%emt 0:00:23]} dxe5 {[%emt 0:00:31]} 38. Nh6+ {[%emt 0:05:51]} Nxh6 {[%emt 0:01:50]} 39. Rxh6 {[%emt 0:00:02] Threatens to win with Ne3.} Kg7 {[%emt 0:01:23]} 40. Rh1 {[%emt 0:00:42]} ({White must play} 40. Rg6+ $16 Kf7 41. Ne3) 40... Bc7 $11 {[%emt 0:00:47] The position is equal.} 41. Ne3 {[%emt 0:00:46][%cal Oa4a5]} Rh8 $36 {[%emt 0:00:11][%mdl 2048] Black has the initiative.} 42. Rbh2 {[%emt 0:00:27]} Rxh2 {[%emt 0:00:05]} 43. Rxh2 {[%emt 0:00:02]} Rh8 {[%emt 0:00:19]} 44. Rxh8 {[%emt 0:01:14]} Kxh8 {[%emt 0:00:02][%mdl 4096] Endgame KB-KN} 45. Kg4 {[%emt 0:00:12]} Kg7 {[%emt 0:00:03]} 46. Kh5 {[%emt 0:00:07]} Bd6 {[%emt 0:00:10]} 47. Nd1 {[%emt 0:00:13]} a6 {[%emt 0:00:28]} 48. Nc3 {[%emt 0:00:09]} Bc7 {[%emt 0:00:34]} 49. d6 {[%emt 0:02:16]} Bxd6 {[%emt 0:00:01]} 50. Nd5 {[%emt 0:00:01] Prevents Bc7.} Bb8 {[%emt 0:00:35]} 51. Nxb6 {[%emt 0:00:05]} Bc7 {[%emt 0:00:09]} 52. Nd7 {[%emt 0:00:37]} Bd6 {[%emt 0:00:11]} 53. Nb6 {[%emt 0:00:29]} Bc7 {[%emt 0:00:08]} 54. Nd5 {[%emt 0:00:05]} Ba5 {[%emt 0:00:39]} 55. Ne3 {[%emt 0:00:54]} Bd2 {[%emt 0:00:36]} 56. Nd5 {[%emt 0:00:49]} Ba5 {[%emt 0:00:09]} 57. Kg4 {[%emt 0:00:11]} Kf7 {[%emt 0:00:12]} 58. Kf3 {[%emt 0:00:39]} Kg7 {[%emt 0:00:30] Black escapes into a draw.  Weighted Error Value: White=0.11 (very precise) /Black=0.14 (very precise)} 1/2-1/2

[Event "Aktobe Open 2022"]
[Site "Aktobe"]
[Date "2022.06.16"]
[Round "4.6"]
[White "Rychagov, Andrey"]
[Black "Kekelidze, Mikheil"]
[Result "1-0"]
[ECO "E21"]
[WhiteElo "2549"]
[BlackElo "2388"]
[Annotator "TA"]
[PlyCount "89"]
[EventDate "2022.06.14"]
[EventType "swiss"]
[EventCountry "KAZ"]
[SourceTitle "playchess.com"]
[Source "ChessBase"]
[SourceQuality "1"]
[TimeControl "5400+30"]

{[%evp 9,89,28,32,34,31,30,30,29,40,0,0,0,0,0,0,-95,-65,-65,-56,-47,-59,-51,-12,-29,0,0,0,0,0,-28,263,254,235,230,258,252,249,260,289,258,258,290,275,263,294,317,396,399,373,331,568,465,569,560,572,576,571,543,568,450,1127,477,468,468,463,378,368,368,368,354,1598,853,1927,1866,1888,1856,1879,1819,1649,1744,1566,1367]} 1. d4 {[%emt 0:00:03]} Nf6 {[%emt 0:01:17]} 2. c4 {[%emt 0:00:10]} e6 {[%emt 0:00:30]} 3. Nf3 {[%emt 0:00:26]} Nc6 {[%emt 0:00:41]} 4. Nc3 {[%emt 0:14:03]} Bb4 {[%emt 0:00:13]} 5. Bd2 {[%emt 0:02:25]} d5 {[%emt 0:05:49]} 6. a3 {[%emt 0:05:06] E21: Nimzo-Indian: 4 Nf3.} Bxc3 {[%emt 0:01:34]} 7. Bxc3 {[%emt 0:00:05]} dxc4 {[%emt 0:10:13]} 8. e3 {[%emt 0:05:05] [#] White has an edge.} Qd5 $146 {[%emt 0:04:38]} ({Predecessor:} 8... b5 9. b3 Ba6 10. bxc4 Ne4 11. cxb5 Nxc3 12. Qc2 Ne7 13. Qxc3 Bb7 14. Be2 O-O {0-1 (31) Chaiongkarn,B (1401)-Sutthithamwasi,N (1890) Bangkok 2017}) 9. Qc2 {[%emt 0:14:16][%mdl 1024] White has compensation.} b5 {[%emt 0:03:03][%cal Bb7b5,Bb5b4,Bb4b3][%mdl 32]} 10. a4 {[%emt 0:04:27]} b4 {[%emt 0:01:43]} 11. Bd2 {[%emt 0:00:04]} Ba6 {[%emt 0:01:25]} 12. Be2 {[%emt 0:00:44]} (12. Rc1 $11) 12... b3 {[%emt 0:04:05]} 13. Qc1 {[%emt 0:03:53]} Ne4 {[%emt 0:00:24]} 14. O-O {[%emt 0:01:47]} O-O {[%emt 0:11:33]} 15. Bc3 {[%emt 0:00:45]} f5 {[%emt 0:02:31]} (15... Nxc3 16. Qxc3 Rab8 17. Rfc1 $14) 16. Rd1 {[%emt 0:02:09]} Rad8 {[%emt 0:03:01][%cal Of5f4]} (16... Nxc3 17. Qxc3 f4 18. Rac1 $16) 17. Nd2 {[%emt 0:01:32]} Rf6 {[%emt 0:02:20]} (17... Nxc3 18. Qxc3 f4 19. Bf3 $16) 18. f3 {[%emt 0:07:25]} Nxd2 {[%emt 0:02:41]} 19. Rxd2 {[%emt 0:00:06]} f4 $2 {[%emt 0:09:08][%mdl 8192] This move loses the game for Black.} (19... Rb8 $11) 20. e4 $18 {[%emt 0:02:24]} Qh5 {[%emt 0:01:02]} 21. Qf1 {[%emt 0:04:09]} (21. d5 Rh6 22. dxc6 Rxd2 23. Qxd2 Qxh2+ 24. Kf2 Qh4+ 25. Kf1 Qh1+ 26. Kf2 Qh4+ 27. Kf1 Qh1+ 28. Kf2 Qh4+ $11) 21... Rh6 {[%emt 0:08:00]} 22. h3 {[%emt 0:00:11]} Rg6 {[%emt 0:03:36]} 23. Kh1 {[%emt 0:14:03]} (23. Bxc4 Bxc4 24. Qxc4 Qxf3 25. Qxc6 Qe3+ 26. Kf1 f3 $14) 23... Kh8 {[%emt 0:08:29]} 24. Bxc4 {[%emt 0:00:47]} Bc8 {[%emt 0:01:52]} 25. Rad1 {[%emt 0:01:22]} Ne7 {[%emt 0:03:55]} 26. Ba6 {[%emt 0:03:59]} Rg3 {[%emt 0:03:53]} 27. Bxc8 {[%emt 0:00:49]} ({Much less strong is} 27. Bc4 $6 Ng6 $18) 27... Nxc8 {[%emt 0:01:33]} 28. d5 {[%emt 0:00:42]} e5 {[%emt 0:00:18]} 29. Ba5 {[%emt 0:02:23]} Nb6 $2 {[%emt 0:02:25]} (29... Rd7 {keeps fighting.} 30. Qb5 Re7) 30. d6 {[%emt 0:00:45]} cxd6 {[%emt 0:00:46]} 31. Rxd6 {[%emt 0:00:10]} Rxd6 {[%emt 0:00:57]} 32. Rxd6 {[%emt 0:00:06] [#] Intending Rd8+ and mate.} h6 {[%emt 0:01:05]} 33. Bxb6 {[%emt 0:00:10]} axb6 {[%emt 0:00:02]} 34. Rxb6 {[%emt 0:00:08][%mdl 4096] Endgame Strongly threatening a5. KQR-KQR} Kh7 {[%emt 0:01:00]} (34... Qf7 $142 35. a5 Qc7) 35. Rxb3 {[%emt 0:00:12]} (35. a5 $142 Qf7 36. a6) 35... Qf7 {[%emt 0:00:37]} 36. Ra3 {[%emt 0:03:06]} Qb7 {[%emt 0:00:16]} 37. Qe2 {[%emt 0:00:21]} Rg6 {[%emt 0:00:20]} 38. a5 {[%emt 0:00:25][%cal Ba4a5,Ba5a6][%mdl 32] Against Rb6} Rc6 {[%emt 0:00:37] [#] ( -> ...Rc1+)} 39. Ra1 {[%emt 0:00:14] Against Rc1+. Black must now prevent a6.} Qc8 {[%emt 0:01:46]} (39... Qb3 40. a6 Rc8) 40. Qf1 {[%emt 0:01:44] aiming for a6. White is clearly winning.} Qb8 {[%emt 0:00:34]} 41. a6 {[%emt 0:00:31]} Rc7 {[%emt 0:00:06]} 42. b4 {[%emt 0:00:24][%cal Bb2b4,Bb4b5][%mdl 32]} Ra7 {[%emt 0:00:47]} 43. b5 {[%emt 0:00:08]} Ra8 {[%emt 0:00:08]} 44. Qc4 {[%emt 0:00:43]} Qb6 {[%emt 0:00:39]} 45. Qd5 {[%emt 0:00:12] Weighted Error Value: White=0.23 (precise) /Black=0.37} 1-0